[Event "RUS-chT Premier 2019"]
[Site "Sochi"]
[Date "2019.05.08"]
[Round "7.13"]
[White "Bocharov, Ivan"]
[Black "Schekachikhin, Maksim"]
[Result "1-0"]
[ECO "B48"]
[WhiteElo "2568"]
[BlackElo "2424"]
[Annotator "RC"]
[PlyCount "65"]
[EventDate "2019.04.30"]
[EventType "team-tourn"]
[EventCountry "RUS"]
[SourceTitle "playchess.com"]
[Source "ChessBase"]
[SourceQuality "1"]
[TimeControl "40/5400+30:1800+30"]

1. e4 {[%emt 0:00:00]} c5 {[%emt 0:00:00]} 2. Nf3 {[%emt 0:00:00]} e6 {[%emt 0:00:00]} 3. d4 {[%emt 0:00:00]} cxd4 {[%emt 0:00:08]} 4. Nxd4 {[%emt 0:00:00]} Nc6 {[%emt 0:00:19]} 5. Nc3 {[%emt 0:00:00]} Qc7 {[%emt 0:00:23]} 6. Be3 {[%emt 0:00:00]} a6 {[%emt 0:00:05]} 7. Qf3 {[%emt 0:00:02]} Ne5 {[%emt 0:01:09]} 8. Qg3 {[%emt 0:00:10]} b5 {[%emt 0:00:07]} 9. O-O-O {[%emt 0:00:20]} Nf6 {[%emt 0:00:41]} 10. a3 {[%emt 0:04:19]} h5 {[%emt 0:21:33]} 11. h4 {[%emt 0:03:52]} d6 {[%emt 0:07:59]} 12. Bg5 {[%emt 0:02:43]} Bd7 {[%emt 0:06:53]} 13. f4 {[%emt 0:09:57]} Neg4 {[%emt 0:03:29]} 14. Be2 {[%emt 0:01:16]} Rc8 {[%emt 0:03:17]} 15. Rhe1 {[%emt 0:02:40]} Be7 {[%emt 0:01:57]} 16. Bxg4 {[%emt 0:02:52]} hxg4 {[%emt 0:01:21]} 17. e5 {[%emt 0:00:41]} dxe5 {[%emt 0:05:25]} 18. fxe5 {[%emt 0:00:07]} b4 {[%emt 0:05:27]} 19. axb4 {[%emt 0:01:45]} Bxb4 {[%emt 0:01:37]} 20. Re3 {[%emt 0:08:20]} Nd5 {[%emt 0:25:38]} 21. Nxd5 {[%emt 0:00:22]} exd5 {[%emt 0:00:03]} 22. e6 {[%emt 0:00:23]} Bxe6 {[%emt 0:00:49]} 23. Qxc7 {[%emt 0:00:07]} Rxc7 {[%emt 0:00:05]} 24. Nxe6 {[%emt 0:00:02]} fxe6 {[%emt 0:00:07]} 25. Rxe6+ {[%emt 0:00:02]} Kf7 {[%emt 0:00:38]} 26. Rxa6 {[%emt 0:00:17]} Re8 {[%emt 0:01:25]} 27. c3 {[%emt 0:02:41]} Re2 {[%emt 0:01:47]} 28. Rd2 {[%emt 0:00:16]} Re1+ {[%emt 0:02:36]} 29. Kc2 {[%emt 0:00:10]} Be7 {[%emt 0:00:04]} 30. Rxd5 {[%emt 0:01:55]} Rc5 {[%emt 0:04:00]} 31. Rd7 {[%emt 0:01:34]} Re2+ {[%emt 0:04:01]} 32. Kd3 {[%emt 0:00:31]} Rce5 {[%emt 0:01:28]} 33. Raa7 {[%emt 0:00:10]} 1-0

[Event "RUS-chT Premier 2019"]
[Site "Sochi"]
[Date "2019.05.08"]
[Round "7.17"]
[White "Kezin, Roman"]
[Black "Levin, Evgeny A."]
[Result "1/2-1/2"]
[ECO "A28"]
[WhiteElo "2468"]
[BlackElo "2516"]
[Annotator "RC"]
[PlyCount "57"]
[EventDate "2019.04.30"]
[EventType "team-tourn"]
[EventCountry "RUS"]
[SourceTitle "playchess.com"]
[Source "ChessBase"]
[SourceQuality "1"]
[TimeControl "40/5400+30:1800+30"]

1. c4 {[%emt 0:00:00]} Nf6 {[%emt 0:00:00]} 2. Nc3 {[%emt 0:00:00]} e5 {[%emt 0:00:34]} 3. Nf3 {[%emt 0:00:00]} Nc6 {[%emt 0:00:06]} 4. e3 {[%emt 0:00:00]} Bb4 {[%emt 0:01:00]} 5. Qc2 {[%emt 0:00:14]} Bxc3 {[%emt 0:00:31]} 6. Qxc3 {[%emt 0:00:06]} Qe7 {[%emt 0:00:04]} 7. b3 {[%emt 0:03:32]} d5 {[%emt 0:05:47]} 8. d4 {[%emt 0:00:55]} exd4 {[%emt 0:19:56]} 9. Nxd4 {[%emt 0:00:05]} Nxd4 {[%emt 0:04:24]} 10. Qxd4 {[%emt 0:00:28]} c5 {[%emt 0:05:57]} 11. Qf4 {[%emt 0:00:56]} O-O {[%emt 0:07:40]} 12. Bb2 {[%emt 0:00:31]} Be6 {[%emt 0:08:58]} 13. O-O-O {[%emt 0:39:42]} Rad8 {[%emt 0:15:33]} 14. Qe5 {[%emt 0:02:09]} Rfe8 {[%emt 0:04:54]} 15. Be2 {[%emt 0:23:53]} dxc4 {[%emt 0:06:50]} 16. bxc4 {[%emt 0:02:29]} Qf8 {[%emt 0:10:25]} 17. Qc7 {[%emt 0:13:23]} Ne4 {[%emt 0:00:15]} 18. Qf4 {[%emt 0:08:27]} Nd6 {[%emt 0:00:03]} 19. Rd2 {[%emt 0:00:58]} f6 {[%emt 0:03:01]} 20. Rhd1 {[%emt 0:00:18]} Nf7 {[%emt 0:00:36]} 21. Qc7 {[%emt 0:01:20]} Rxd2 {[%emt 0:00:25]} 22. Rxd2 {[%emt 0:00:01]} Qe7 {[%emt 0:00:31]} 23. Qf4 {[%emt 0:01:27]} Rd8 {[%emt 0:00:40]} 24. Bd3 {[%emt 0:00:32]} Rd6 {[%emt 0:01:47]} 25. Qh4 {[%emt 0:00:28]} Ng5 {[%emt 0:00:41]} 26. Qf4 {[%emt 0:00:34]} Nf7 {[%emt 0:00:14]} 27. Qh4 {[%emt 0:00:09]} Ng5 {[%emt 0:00:01]} 28. Qf4 {[%emt 0:00:39]} Nf7 {[%emt 0:00:02]} 29. Qh4 {[%emt 0:00:28]} 1/2-1/2

[Event "RUS-chT Premier 2019"]
[Site "Sochi"]
[Date "2019.05.08"]
[Round "7.19"]
[White "Sjugirov, Sanan"]
[Black "Chigaev, Maksim"]
[Result "1-0"]
[ECO "C96"]
[WhiteElo "2661"]
[BlackElo "2637"]
[Annotator "RC"]
[PlyCount "79"]
[EventDate "2019.04.30"]
[EventType "team-tourn"]
[EventCountry "RUS"]
[SourceTitle "playchess.com"]
[Source "ChessBase"]
[SourceQuality "1"]
[TimeControl "40/5400+30:1800+30"]

1. e4 {[%emt 0:00:00]} e5 {[%emt 0:00:00]} 2. Nf3 {[%emt 0:00:00]} Nc6 {[%emt 0:00:00]} 3. Bb5 {[%emt 0:00:05]} a6 {[%emt 0:00:00]} 4. Ba4 {[%emt 0:00:06]} Nf6 {[%emt 0:00:00]} 5. O-O {[%emt 0:00:13]} Be7 {[%emt 0:00:00]} 6. Re1 {[%emt 0:00:15]} b5 {[%emt 0:00:04]} 7. Bb3 {[%emt 0:00:05]} d6 {[%emt 0:00:06]} 8. c3 {[%emt 0:00:19]} O-O {[%emt 0:00:07]} 9. h3 {[%emt 0:00:14]} Na5 {[%emt 0:00:04]} 10. Bc2 {[%emt 0:00:13]} c5 {[%emt 0:00:05]} 11. d4 {[%emt 0:01:35]} Nd7 {[%emt 0:00:06]} 12. d5 {[%emt 0:17:09]} Nb6 {[%emt 0:00:24]} 13. Nbd2 {[%emt 0:09:33]} Bd7 {[%emt 0:08:20]} 14. Nf1 {[%emt 0:03:52]} Nb7 {[%emt 0:08:03]} 15. Ng3 {[%emt 0:03:37]} a5 {[%emt 0:07:35]} 16. Nf5 {[%emt 0:05:43]} Bf6 17. g4 {[%emt 0:03:20]} g6 {[%emt 0:01:11]} 18. Ng3 {[%emt 0:03:38]} c4 {[%emt 0:07:42]} 19. Be3 {[%emt 0:07:52]} Nc5 {[%emt 0:01:43]} 20. Qd2 {[%emt 0:03:15]} Qc7 {[%emt 0:09:27]} 21. Rf1 {[%emt 0:11:06]} Rab8 {[%emt 0:06:45]} 22. Bh6 {[%emt 0:06:33]} Rfc8 {[%emt 0:00:11]} 23. Ng5 {[%emt 0:00:51]} Be8 {[%emt 0:09:28]} 24. f4 {[%emt 0:02:52]} exf4 {[%emt 0:01:20]} 25. Rxf4 {[%emt 0:01:04]} Be5 {[%emt 0:04:59]} 26. Nf3 {[%emt 0:00:24]} Bh8 {[%emt 0:06:34]} 27. Rf1 {[%emt 0:01:08]} Nd3 {[%emt 0:00:25]} 28. Bxd3 {[%emt 0:00:42]} cxd3 {[%emt 0:00:05]} 29. Qxd3 {[%emt 0:02:40]} Nc4 {[%emt 0:02:05]} 30. Qe2 {[%emt 0:07:08]} b4 {[%emt 0:06:13]} 31. b3 {[%emt 0:01:14]} Qb6+ {[%emt 0:05:56]} 32. Rf2 {[%emt 0:03:36]} bxc3 {[%emt 0:02:09]} 33. bxc4 {[%emt 0:00:08]} Qb1+ {[%emt 0:00:03]} 34. Rf1 {[%emt 0:02:14]} c2 {[%emt 0:00:06]} 35. Qe3 {[%emt 0:03:52]} Rxc4 {[%emt 0:02:21]} 36. Ne2 {[%emt 0:00:05]} Bb5 {[%emt 0:07:18]} 37. Nd2 {[%emt 0:01:03]} Qb4 {[%emt 0:00:52]} 38. Nxc4 {[%emt 0:00:24]} Qxc4 {[%emt 0:01:44]} 39. Rxf7 {[%emt 0:00:11]} Qc8 {[%emt 0:00:03]} 40. Qa7 {[%emt 0:00:00]} 1-0

[Event "RUS-chT Premier 2019"]
[Site "Sochi"]
[Date "2019.05.08"]
[Round "7.20"]
[White "Paravyan, David"]
[Black "Alekseev, Evgeny"]
[Result "1/2-1/2"]
[ECO "A40"]
[WhiteElo "2610"]
[BlackElo "2647"]
[Annotator "ChessBase"]
[PlyCount "86"]
[EventDate "2019.04.30"]
[EventType "team-tourn"]
[EventCountry "RUS"]
[SourceTitle "playchess.com"]
[Source "ChessBase"]
[SourceQuality "1"]
[TimeControl "40/5400+30:1800+30"]

1. d4 {[%emt 0:00:00]} Nf6 {[%emt 0:00:31]} 2. c4 {[%emt 0:00:00]} e6 {[%emt 0:00:03]} 3. g3 {[%emt 0:00:00]} Bb4+ {[%emt 0:03:07]} 4. Bd2 {[%emt 0:00:53]} Be7 {[%emt 0:00:26]} 5. Bg2 {[%emt 0:00:05]} d5 {[%emt 0:00:15]} 6. Nf3 {[%emt 0:00:15]} O-O {[%emt 0:00:34]} 7. O-O {[%emt 0:00:04]} c6 {[%emt 0:01:49]} 8. Qc2 {[%emt 0:00:57]} b6 {[%emt 0:03:35]} 9. Ne5 {[%emt 0:02:57]} Bb7 {[%emt 0:07:44]} 10. Rd1 {[%emt 0:01:46]} Nfd7 {[%emt 0:09:22]} 11. Nd3 {[%emt 0:01:10]} a5 {[%emt 0:04:16]} 12. Bf4 {[%emt 0:06:07]} Na6 {[%emt 0:02:20]} 13. e4 {[%emt 0:05:08]} Rc8 {[%emt 0:04:04]} 14. b3 {[%emt 0:15:40]} Nb4 {[%emt 0:13:16]} 15. Nxb4 {[%emt 0:07:56]} axb4 {[%emt 0:01:42]} 16. a4 {[%emt 0:00:38]} dxc4 {[%emt 0:20:14]} 17. Qxc4 {[%emt 0:17:54]} c5 {[%emt 0:00:33]} 18. dxc5 {[%emt 0:00:07]} Bxc5 {[%emt 0:02:49]} 19. Qb5 {[%emt 0:04:36]} Bc6 {[%emt 0:05:40]} 20. Qe2 {[%emt 0:00:06]} Qe7 {[%emt 0:03:06]} 21. Nd2 {[%emt 0:00:06]} Bd4 {[%emt 0:04:19]} 22. Rab1 {[%emt 0:03:29]} e5 {[%emt 0:02:42]} 23. Be3 {[%emt 0:06:22]} Nc5 {[%emt 0:00:04]} 24. Bxd4 {[%emt 0:08:19]} exd4 {[%emt 0:00:05]} 25. Nc4 {[%emt 0:00:03]} d3 {[%emt 0:04:21]} 26. Qe3 {[%emt 0:00:08]} Rb8 {[%emt 0:01:49]} 27. Rdc1 {[%emt 0:00:29]} Rfd8 {[%emt 0:01:33]} 28. a5 {[%emt 0:00:19]} d2 {[%emt 0:02:16]} 29. Nxd2 {[%emt 0:00:24]} Rd3 {[%emt 0:00:02]} 30. Qf4 {[%emt 0:09:09]} Qb7 {[%emt 0:00:27]} 31. a6 {[%emt 0:02:41]} Qa7 {[%emt 0:01:24]} 32. Nc4 {[%emt 0:01:22]} Rxb3 {[%emt 0:00:38]} 33. Rxb3 {[%emt 0:03:16]} Nxb3 {[%emt 0:00:02]} 34. Rd1 {[%emt 0:00:19]} Nc5 {[%emt 0:01:13]} 35. Qd6 {[%emt 0:01:44]} Be8 {[%emt 0:00:19]} 36. Ne3 {[%emt 0:01:01]} b3 {[%emt 0:00:47]} 37. Nf5 {[%emt 0:00:23]} h6 {[%emt 0:00:23]} 38. Qd4 {[%emt 0:01:18]} f6 {[%emt 0:00:18]} 39. e5 {[%emt 0:00:12]} Bg6 {[%emt 0:00:19]} 40. g4 {[%emt 0:00:00]} fxe5 {[%emt 0:00:00]} 41. Qxe5 {[%emt 0:04:39]} Re8 {[%emt 0:06:44]} 42. Qd6 {[%emt 0:12:50]} Kh7 {[%emt 0:02:25]} 43. h4 {[%emt 0:00:57]} h5 {[%emt 0:09:37]} 1/2-1/2

[Event "RUS-chT Premier 2019"]
[Site "Sochi"]
[Date "2019.05.08"]
[Round "7.21"]
[White "Rakhmanov, Aleksandr"]
[Black "Esipenko, Andrey"]
[Result "1/2-1/2"]
[ECO "A48"]
[WhiteElo "2629"]
[BlackElo "2620"]
[Annotator "RC"]
[PlyCount "52"]
[EventDate "2019.04.30"]
[EventType "team-tourn"]
[EventCountry "RUS"]
[SourceTitle "playchess.com"]
[Source "ChessBase"]
[SourceQuality "1"]
[TimeControl "40/5400+30:1800+30"]

1. d4 {[%emt 0:00:00]} Nf6 {[%emt 0:00:00]} 2. Nf3 {[%emt 0:00:48]} g6 {[%emt 0:00:03]} 3. c4 {[%emt 0:01:47]} Bg7 {[%emt 0:00:23]} 4. Nc3 {[%emt 0:00:56]} d5 {[%emt 0:00:24]} 5. h3 {[%emt 0:00:49]} O-O {[%emt 0:03:21]} 6. cxd5 {[%emt 0:03:31]} Nxd5 {[%emt 0:00:05]} 7. e4 {[%emt 0:00:08]} Nxc3 {[%emt 0:00:04]} 8. bxc3 {[%emt 0:00:06]} c5 {[%emt 0:00:56]} 9. Be2 {[%emt 0:00:41]} Nc6 {[%emt 0:02:06]} 10. Be3 {[%emt 0:01:27]} cxd4 {[%emt 0:02:14]} 11. cxd4 {[%emt 0:00:13]} f5 {[%emt 0:00:17]} 12. Bc4+ {[%emt 0:01:20]} Kh8 {[%emt 0:01:24]} 13. O-O {[%emt 0:00:20]} fxe4 {[%emt 0:12:04]} 14. Ng5 {[%emt 0:03:51]} Nxd4 {[%emt 0:00:42]} 15. Nf7+ {[%emt 0:00:19]} Rxf7 {[%emt 0:00:04]} 16. Bxf7 {[%emt 0:00:09]} Qd6 {[%emt 0:00:34]} 17. Rc1 {[%emt 0:08:20]} Bd7 {[%emt 0:00:56]} 18. Qd2 {[%emt 0:05:57]} Rf8 {[%emt 0:02:44]} 19. Rfd1 {[%emt 0:05:03]} e5 {[%emt 0:01:55]} 20. Bc4 {[%emt 0:00:28]} Bc6 {[%emt 0:02:54]} 21. Bf1 {[%emt 0:05:52]} Qe7 {[%emt 0:07:42]} 22. Rc4 {[%emt 0:11:14]} Qf6 {[%emt 0:06:37]} 23. Bg5 {[%emt 0:11:37]} Qf7 {[%emt 0:02:54]} 24. Be3 {[%emt 0:00:37]} Qf6 {[%emt 0:01:35]} 25. Bg5 {[%emt 0:02:07]} Qf7 {[%emt 0:02:11]} 26. Be3 {[%emt 0:00:26]} Qf6 {[%emt 0:03:28]} 1/2-1/2

[Event "RUS-chT Premier 2019"]
[Site "Sochi"]
[Date "2019.05.09"]
[Round "8.5"]
[White "Askerov, Marat"]
[Black "Alekseenko, Kirill"]
[Result "0-1"]
[ECO "E00"]
[WhiteElo "2315"]
[BlackElo "2636"]
[Annotator "RC"]
[PlyCount "54"]
[EventDate "2019.05.01"]
[EventType "team-tourn"]
[EventCountry "RUS"]
[SourceTitle "playchess.com"]
[Source "ChessBase"]
[SourceQuality "1"]
[TimeControl "40/5400+30:1800+30"]

1. d4 {[%emt 0:00:00]} e6 {[%emt 0:00:03]} 2. c4 {[%emt 0:00:47]} Bb4+ {[%emt 0:00:26]} 3. Bd2 {[%emt 0:00:40]} a5 {[%emt 0:00:18]} 4. Nf3 {[%emt 0:03:49]} d6 {[%emt 0:00:57]} 5. a3 {[%emt 0:08:24]} Bxd2+ {[%emt 0:00:26]} 6. Qxd2 {[%emt 0:00:04]} Nf6 {[%emt 0:06:21]} 7. Nc3 {[%emt 0:00:09]} O-O {[%emt 0:02:09]} 8. e4 {[%emt 0:07:59]} Nc6 {[%emt 0:02:29]} 9. Rd1 {[%emt 0:05:17]} d5 {[%emt 0:32:26]} 10. Bd3 {[%emt 0:17:12]} dxc4 {[%emt 0:00:16]} 11. Bxc4 {[%emt 0:00:08]} Ne7 {[%emt 0:00:18]} 12. O-O {[%emt 0:01:09]} b6 {[%emt 0:00:22]} 13. d5 {[%emt 0:07:36]} Ng6 {[%emt 0:12:38]} 14. e5 {[%emt 0:09:12]} Ng4 {[%emt 0:04:26]} 15. Qd4 {[%emt 0:02:41]} Nh6 {[%emt 0:03:18]} 16. Nb5 {[%emt 0:10:02]} Nf5 {[%emt 0:05:23]} 17. Qc3 {[%emt 0:00:43]} Qe7 {[%emt 0:00:58]} 18. dxe6 {[%emt 0:03:24]} fxe6 {[%emt 0:00:15]} 19. Nxc7 {[%emt 0:01:52]} Rb8 {[%emt 0:00:04]} 20. Nb5 {[%emt 0:06:01]} Bb7 {[%emt 0:00:30]} 21. Nbd4 {[%emt 0:01:08]} Nf4 {[%emt 0:01:05]} 22. Nxf5 {[%emt 0:07:33]} Rxf5 {[%emt 0:00:23]} 23. Rd6 {[%emt 0:02:03]} b5 {[%emt 0:05:53]} 24. Bxe6+ {[%emt 0:00:53]} Nxe6 {[%emt 0:00:14]} 25. Qb3 {[%emt 0:00:47]} Bxf3 {[%emt 0:00:44]} 26. Rxe6 {[%emt 0:02:25]} Qf7 {[%emt 0:00:04]} 27. gxf3 {[%emt 0:00:50]} Rxe5 {[%emt 0:00:06]} 0-1

[Event "RUS-chT Premier 2019"]
[Site "Sochi"]
[Date "2019.05.09"]
[Round "8.6"]
[White "Goganov, Aleksey"]
[Black "Golikov, Daniil"]
[Result "1-0"]
[ECO "D11"]
[WhiteElo "2570"]
[BlackElo "2271"]
[Annotator "ChessBase"]
[PlyCount "59"]
[EventDate "2019.05.01"]
[EventType "team-tourn"]
[EventCountry "RUS"]
[SourceTitle "playchess.com"]
[Source "ChessBase"]
[SourceQuality "1"]
[TimeControl "40/5400+30:1800+30"]

1. Nf3 {[%emt 0:00:00]} Nf6 {[%emt 0:00:00]} 2. c4 {[%emt 0:00:00]} c6 {[%emt 0:00:00]} 3. d4 {[%emt 0:00:49]} d5 {[%emt 0:00:00]} 4. e3 {[%emt 0:00:12]} e6 {[%emt 0:00:04]} 5. Bd3 {[%emt 0:00:17]} a6 {[%emt 0:00:22]} 6. b3 {[%emt 0:06:33]} Nbd7 {[%emt 0:02:53]} 7. O-O {[%emt 0:01:00]} Bd6 {[%emt 0:02:46]} 8. Nbd2 {[%emt 0:08:32]} O-O {[%emt 0:05:00]} 9. Bb2 {[%emt 0:05:56]} b5 {[%emt 0:08:40]} 10. e4 {[%emt 0:01:10]} bxc4 {[%emt 0:04:36]} 11. bxc4 {[%emt 0:00:05]} dxe4 {[%emt 0:05:02]} 12. Nxe4 {[%emt 0:00:06]} Nxe4 {[%emt 0:00:03]} 13. Bxe4 {[%emt 0:00:05]} Rb8 {[%emt 0:02:25]} 14. Qc2 {[%emt 0:00:38]} Nf6 {[%emt 0:00:12]} 15. Bd3 {[%emt 0:00:38]} c5 {[%emt 0:05:28]} 16. dxc5 {[%emt 0:01:59]} Bxc5 {[%emt 0:00:07]} 17. Rad1 {[%emt 0:05:17]} Qe7 {[%emt 0:01:24]} 18. Bxf6 {[%emt 0:01:47]} Qxf6 {[%emt 0:01:18]} 19. Bxh7+ {[%emt 0:00:05]} Kh8 {[%emt 0:00:07]} 20. Be4 {[%emt 0:00:25]} Rb2 {[%emt 0:01:29]} 21. Qa4 {[%emt 0:06:25]} Rb4 {[%emt 0:08:12]} 22. Qc2 {[%emt 0:03:35]} Rb2 {[%emt 0:00:40]} 23. Qa4 {[%emt 0:15:36]} Rb4 {[%emt 0:03:50]} 24. Qa5 {[%emt 0:00:21]} Rxc4 {[%emt 0:00:14]} 25. Nd2 {[%emt 0:01:20]} Rc3 {[%emt 0:03:25]} 26. Nb1 {[%emt 0:20:13]} Rc4 {[%emt 0:00:18]} 27. Nd2 {[%emt 0:00:12]} Rc3 {[%emt 0:00:09]} 28. Nb3 {[%emt 0:07:17]} Ba7 {[%emt 0:06:58]} 29. Qh5+ {[%emt 0:01:03]} Qh6 {[%emt 0:00:06]} 30. Qxf7 {[%emt 0:00:57]} 1-0

[Event "RUS-chT Premier 2019"]
[Site "Sochi"]
[Date "2019.05.09"]
[Round "8.7"]
[White "Chigaev, Maksim"]
[Black "Riazantsev, Alexander"]
[Result "1/2-1/2"]
[ECO "B12"]
[WhiteElo "2637"]
[BlackElo "2653"]
[Annotator "RC"]
[PlyCount "45"]
[EventDate "2019.05.01"]
[EventType "team-tourn"]
[EventCountry "RUS"]
[SourceTitle "playchess.com"]
[Source "ChessBase"]
[SourceQuality "1"]
[TimeControl "40/5400+30:1800+30"]

1. e4 {[%emt 0:00:00]} c6 {[%emt 0:00:00]} 2. d4 {[%emt 0:00:00]} d5 {[%emt 0:00:00]} 3. e5 {[%emt 0:00:00]} c5 {[%emt 0:00:00]} 4. dxc5 {[%emt 0:00:07]} e6 {[%emt 0:00:00]} 5. a3 {[%emt 0:00:05]} Bxc5 {[%emt 0:00:02]} 6. Qg4 {[%emt 0:00:06]} Ne7 {[%emt 0:00:51]} 7. Nf3 {[%emt 0:00:12]} Ng6 {[%emt 0:02:46]} 8. Bd3 {[%emt 0:02:18]} Nc6 {[%emt 0:01:01]} 9. Nc3 {[%emt 0:13:01]} h5 {[%emt 0:35:10]} 10. Qg3 {[%emt 0:09:27]} h4 {[%emt 0:00:22]} 11. Qg4 {[%emt 0:00:06]} Ncxe5 {[%emt 0:00:12]} 12. Nxe5 {[%emt 0:00:11]} Nxe5 {[%emt 0:00:02]} 13. Qxg7 {[%emt 0:00:12]} Nxd3+ {[%emt 0:05:05]} 14. cxd3 {[%emt 0:00:09]} Rh5 {[%emt 0:00:01]} 15. d4 {[%emt 0:00:28]} Bf8 {[%emt 0:08:38]} 16. Qg4 {[%emt 0:00:25]} Rf5 {[%emt 0:01:13]} 17. O-O {[%emt 0:01:33]} Bd7 {[%emt 0:01:24]} 18. Be3 {[%emt 0:03:20]} Qf6 {[%emt 0:02:32]} 19. Rac1 {[%emt 0:04:39]} Bd6 {[%emt 0:02:02]} 20. Qg8+ {[%emt 0:13:56]} Bf8 {[%emt 0:00:02]} 21. Qg4 {[%emt 0:00:17]} Bd6 {[%emt 0:00:04]} 22. Qg8+ {[%emt 0:11:28]} Bf8 {[%emt 0:00:03]} 23. Qg4 {[%emt 0:00:14]} 1/2-1/2

[Event "RUS-chT Premier 2019"]
[Site "Sochi"]
[Date "2019.05.09"]
[Round "8.16"]
[White "Kokarev, Dmitry"]
[Black "Levin, Evgeny A."]
[Result "1-0"]
[ECO "B50"]
[WhiteElo "2605"]
[BlackElo "2516"]
[Annotator "RC"]
[PlyCount "147"]
[EventDate "2019.05.01"]
[EventType "team-tourn"]
[EventCountry "RUS"]
[SourceTitle "playchess.com"]
[Source "ChessBase"]
[SourceQuality "1"]
[TimeControl "40/5400+30:1800+30"]

1. e4 {[%emt 0:00:00]} c5 {[%emt 0:00:00]} 2. Nf3 {[%emt 0:00:01]} d6 {[%emt 0:00:00]} 3. d4 {[%emt 0:00:17]} Nf6 {[%emt 0:00:09]} 4. Bb5+ {[%emt 0:00:42]} Bd7 {[%emt 0:00:44]} 5. Bxd7+ {[%emt 0:00:14]} Qxd7 {[%emt 0:00:11]} 6. dxc5 {[%emt 0:00:20]} Nxe4 {[%emt 0:00:39]} 7. cxd6 {[%emt 0:00:12]} Nxd6 {[%emt 0:01:14]} 8. Nc3 {[%emt 0:02:40]} Nc6 {[%emt 0:00:31]} 9. Qe2 {[%emt 0:00:59]} g6 {[%emt 0:06:00]} 10. Bf4 {[%emt 0:00:28]} Bg7 {[%emt 0:01:01]} 11. O-O-O {[%emt 0:00:30]} O-O {[%emt 0:01:10]} 12. Nd5 {[%emt 0:03:27]} Rfe8 {[%emt 0:02:32]} 13. Ne5 {[%emt 0:12:54]} Qd8 {[%emt 0:11:17]} 14. Rhe1 {[%emt 0:08:42]} Qa5 {[%emt 0:04:06]} 15. Kb1 {[%emt 0:09:16]} e6 {[%emt 0:07:56]} 16. Nc3 {[%emt 0:09:13]} Nxe5 {[%emt 0:07:06]} 17. Bxe5 {[%emt 0:02:21]} Bxe5 {[%emt 0:01:34]} 18. Qxe5 {[%emt 0:00:08]} Qxe5 {[%emt 0:00:09]} 19. Rxe5 {[%emt 0:00:04]} Red8 {[%emt 0:00:52]} 20. a4 {[%emt 0:00:55]} Nf5 {[%emt 0:08:27]} 21. Rc5 {[%emt 0:11:22]} Rxd1+ {[%emt 0:03:54]} 22. Nxd1 {[%emt 0:00:07]} Rd8 {[%emt 0:10:07]} 23. Kc1 {[%emt 0:00:16]} Rd7 {[%emt 0:05:48]} 24. b4 {[%emt 0:02:21]} Kf8 {[%emt 0:03:43]} 25. Nb2 {[%emt 0:05:40]} Ne7 {[%emt 0:08:11]} 26. a5 {[%emt 0:03:02]} Nd5 {[%emt 0:08:43]} 27. Nd3 {[%emt 0:01:35]} Rc7 {[%emt 0:05:42]} 28. Rxc7 {[%emt 0:01:44]} Nxc7 {[%emt 0:00:02]} 29. Kd2 {[%emt 0:01:10]} Ke7 {[%emt 0:00:29]} 30. c4 {[%emt 0:01:32]} Kd6 {[%emt 0:00:25]} 31. f4 {[%emt 0:01:07]} b6 {[%emt 0:01:24]} 32. axb6 {[%emt 0:00:35]} axb6 {[%emt 0:00:02]} 33. Kc3 {[%emt 0:03:00]} f6 {[%emt 0:01:47]} 34. Kd4 {[%emt 0:00:57]} Na6 {[%emt 0:00:07]} 35. g4 {[%emt 0:03:50]} Nb8 {[%emt 0:00:32]} 36. c5+ {[%emt 0:02:15]} bxc5+ {[%emt 0:00:04]} 37. bxc5+ {[%emt 0:00:16]} Kc7 {[%emt 0:00:41]} 38. Kc4 {[%emt 0:03:28]} Nc6 {[%emt 0:00:17]} 39. g5 {[%emt 0:01:26]} fxg5 {[%emt 0:00:49]} 40. fxg5 {[%emt 0:00:00]} Na5+ {[%emt 0:00:00]} 41. Kd4 {[%emt 0:03:49]} Nc6+ {[%emt 0:01:57]} 42. Ke4 {[%emt 0:00:11]} Kd8 {[%emt 0:02:20]} 43. Ne5 {[%emt 0:02:24]} Nb4 {[%emt 0:01:03]} 44. Kd4 {[%emt 0:01:46]} Nc2+ {[%emt 0:00:36]} 45. Ke4 {[%emt 0:04:10]} Nb4 {[%emt 0:00:20]} 46. Ng4 {[%emt 0:00:23]} Ke7 {[%emt 0:01:14]} 47. Kd4 {[%emt 0:01:01]} Nc2+ {[%emt 0:06:01]} 48. Kc4 {[%emt 0:04:10]} Kd7 {[%emt 0:00:29]} 49. Nf6+ {[%emt 0:01:54]} Kc6 {[%emt 0:01:34]} 50. Nxh7 {[%emt 0:00:12]} Ne3+ {[%emt 0:06:15]} 51. Kd4 {[%emt 0:01:00]} Nf1 {[%emt 0:02:56]} 52. h3 {[%emt 0:06:00]} Nd2 {[%emt 0:00:20]} 53. Ke3 {[%emt 0:02:21]} Nc4+ {[%emt 0:00:30]} 54. Kf4 {[%emt 0:00:28]} e5+ {[%emt 0:06:36]} 55. Ke4 {[%emt 0:04:19]} Kxc5 {[%emt 0:00:07]} 56. Nf8 {[%emt 0:00:06]} Kd6 {[%emt 0:00:36]} 57. Nxg6 {[%emt 0:01:45]} Ke6 {[%emt 0:00:05]} 58. Nh4 {[%emt 0:00:31]} Nd6+ {[%emt 0:02:14]} 59. Kf3 {[%emt 0:00:09]} Nf7 {[%emt 0:00:36]} 60. Kg4 {[%emt 0:00:14]} e4 {[%emt 0:00:34]} 61. Kf4 {[%emt 0:03:22]} Nd6 {[%emt 0:02:45]} 62. Ng2 {[%emt 0:00:42]} Kf7 {[%emt 0:00:17]} 63. h4 {[%emt 0:01:12]} Kg6 {[%emt 0:00:35]} 64. Kg4 {[%emt 0:00:07]} Nc4 {[%emt 0:02:05]} 65. h5+ {[%emt 0:00:24]} Kf7 {[%emt 0:00:13]} 66. Kf4 {[%emt 0:00:45]} Nd6 {[%emt 0:00:34]} 67. Ke5 {[%emt 0:01:22]} Ne8 {[%emt 0:00:03]} 68. Kxe4 {[%emt 0:00:32]} Ng7 {[%emt 0:00:16]} 69. Nf4 {[%emt 0:00:22]} Ne8 {[%emt 0:01:13]} 70. Ke5 {[%emt 0:00:43]} Kg7 {[%emt 0:00:07]} 71. h6+ {[%emt 0:00:51]} Kh7 {[%emt 0:00:12]} 72. Nd5 {[%emt 0:01:21]} Kg6 {[%emt 0:00:19]} 73. Ke6 {[%emt 0:00:42]} Kxg5 {[%emt 0:00:52]} 74. h7 {[%emt 0:00:08]} 1-0